[Event "Live Chess"]
[Site "Chess.com"]
[Date "2023.05.21"]
[Round "-"]
[White "nigelst"]
[Black "KeithArkell"]
[Result "0-1"]
[WhiteElo "1724"]
[BlackElo "2560"]
[TimeControl "300"]
[EndTime "22:49:10 PDT"]
[Termination "KeithArkell won on time"]

1. e4 {[%clk 0:04:59]} 1... c6 {[%clk 0:04:58.7]} 2. d4 {[%clk 0:04:57.3]} 2...
d5 {[%clk 0:04:57.6]} 3. exd5 {[%clk 0:04:56.1]} 3... cxd5 {[%clk 0:04:57]} 4.
Bd3 {[%clk 0:04:54.7]} 4... Nf6 {[%clk 0:04:56.3]} 5. Nf3 {[%clk 0:04:51.4]}
5... Nc6 {[%clk 0:04:55.3]} 6. O-O {[%clk 0:04:49.3]} 6... Bg4 {[%clk
0:04:54.1]} 7. c3 {[%clk 0:04:39.7]} 7... e6 {[%clk 0:04:53.2]} 8. h3 {[%clk
0:04:35.6]} 8... Bh5 {[%clk 0:04:51.3]} 9. Be3 {[%clk 0:04:26]} 9... Bd6 {[%clk
0:04:49.6]} 10. Re1 {[%clk 0:04:20]} 10... Qc7 {[%clk 0:04:48.3]} 11. g4 {[%clk
0:04:02.6]} 11... Bg6 {[%clk 0:04:45.4]} 12. Kg2 {[%clk 0:03:58.4]} 12... Bxd3
{[%clk 0:04:43.2]} 13. Qxd3 {[%clk 0:03:56.7]} 13... Bf4 {[%clk 0:04:41.1]} 14.
Na3 {[%clk 0:03:44.2]} 14... Bxe3 {[%clk 0:04:33]} 15. Qxe3 {[%clk 0:03:40.1]}
15... a6 {[%clk 0:04:30.4]} 16. Nd2 {[%clk 0:03:32.5]} 16... O-O {[%clk
0:04:25.1]} 17. f4 {[%clk 0:03:30.6]} 17... Rfe8 {[%clk 0:04:23.1]} 18. Qf2
{[%clk 0:03:25]} 18... g6 {[%clk 0:04:19.4]} 19. Nc2 {[%clk 0:03:15.9]} 19... b5
{[%clk 0:04:17.3]} 20. Ne3 {[%clk 0:03:14]} 20... b4 {[%clk 0:04:13.5]} 21. Rac1
{[%clk 0:03:12.3]} 21... bxc3 {[%clk 0:04:12.7]} 22. Rxc3 {[%clk 0:03:07.8]}
22... Qd6 {[%clk 0:04:09.9]} 23. Nc2 {[%clk 0:02:57]} 23... Rab8 {[%clk
0:04:07.2]} 24. b3 {[%clk 0:02:41.3]} 24... Rec8 {[%clk 0:04:05.8]} 25. g5
{[%clk 0:02:33.1]} 25... Nh5 {[%clk 0:04:01.3]} 26. Rf3 {[%clk 0:02:15.9]} 26...
Ne7 {[%clk 0:03:58.6]} 27. Ne3 {[%clk 0:02:02.2]} 27... Rc7 {[%clk 0:03:41.6]}
28. Ng4 {[%clk 0:01:55.5]} 28... Nf5 {[%clk 0:03:40.6]} 29. Re2 {[%clk
0:01:38.1]} 29... Rbc8 {[%clk 0:03:37.8]} 30. h4 {[%clk 0:01:26.6]} 30... Rc3
{[%clk 0:03:34.8]} 31. Ree3 {[%clk 0:01:07.2]} 31... Nxe3+ {[%clk 0:03:31.2]}
32. Rxe3 {[%clk 0:01:05.6]} 32... Rxe3 {[%clk 0:03:29.1]} 33. Nxe3 {[%clk
0:00:58.3]} 33... Qxf4 {[%clk 0:03:27.8]} 34. Qxf4 {[%clk 0:00:48.8]} 34...
Nxf4+ {[%clk 0:03:27]} 35. Kf3 {[%clk 0:00:45.3]} 35... Nd3 {[%clk 0:03:21.1]}
36. Ng4 {[%clk 0:00:38.4]} 36... Kg7 {[%clk 0:03:19]} 37. Kg3 {[%clk 0:00:33]}
37... Rc3 {[%clk 0:03:14.7]} 38. Nf3 {[%clk 0:00:18.9]} 38... Ne1 {[%clk
0:03:13.3]} 39. Ne5 {[%clk 0:00:15.6]} 39... Nxf3 {[%clk 0:03:12.4]} 40. Nxf3
{[%clk 0:00:14.2]} 40... Rc2 {[%clk 0:03:04.8]} 41. Kg4 {[%clk 0:00:12.9]} 41...
Rxa2 {[%clk 0:03:02.6]} 42. h5 {[%clk 0:00:11.6]} 42... gxh5+ {[%clk 0:02:59.1]}
43. Kxh5 {[%clk 0:00:10.2]} 43... Rb2 {[%clk 0:02:52.8]} 44. Kg4 {[%clk
0:00:07.9]} 44... Rxb3 {[%clk 0:02:51.8]} 45. Ne5 {[%clk 0:00:07.1]} 45... Rb4
{[%clk 0:02:49.5]} 0-1

[Event "Live Chess"]
[Site "Chess.com"]
[Date "2023.05.21"]
[Round "-"]
[White "Doge_Dandolo"]
[Black "Long1968"]
[Result "1-0"]
[WhiteElo "1907"]
[BlackElo "1048"]
[TimeControl "300"]
[EndTime "22:49:16 PDT"]
[Termination "Doge_Dandolo won on time"]

1. Nf3 {[%clk 0:04:57.7]} 1... Nf6 {[%clk 0:04:54.6]} 2. c4 {[%clk 0:04:55.9]}
2... g6 {[%clk 0:04:50.5]} 3. Nc3 {[%clk 0:04:54.3]} 3... Bg7 {[%clk 0:04:46.9]}
4. e4 {[%clk 0:04:53.2]} 4... e6 {[%clk 0:04:40.7]} 5. d4 {[%clk 0:04:52.3]}
5... d5 {[%clk 0:04:35.8]} 6. Bg5 {[%clk 0:04:44.8]} 6... h6 {[%clk 0:04:27.9]}
7. Bxf6 {[%clk 0:04:42.4]} 7... Bxf6 {[%clk 0:04:20]} 8. e5 {[%clk 0:04:41.5]}
8... Bg7 {[%clk 0:04:16.5]} 9. c5 {[%clk 0:04:36.7]} 9... b6 {[%clk 0:04:07.5]}
10. Bb5+ {[%clk 0:04:31.9]} 10... Bd7 {[%clk 0:03:58]} 11. b4 {[%clk 0:04:20.7]}
11... a6 {[%clk 0:03:51.9]} 12. Qa4 {[%clk 0:04:10.9]} 12... Bxb5 {[%clk
0:03:39.9]} 13. Nxb5 {[%clk 0:04:08.4]} 13... Nd7 {[%clk 0:03:37.1]} 14. Nc3
{[%clk 0:04:00.2]} 14... b5 {[%clk 0:03:12.9]} 15. Qc2 {[%clk 0:03:54.9]} 15...
O-O {[%clk 0:02:58.9]} 16. O-O {[%clk 0:03:52.1]} 16... Qe8 {[%clk 0:02:46.1]}
17. a4 {[%clk 0:03:39.7]} 17... f6 {[%clk 0:02:39.9]} 18. exf6 {[%clk
0:03:28.4]} 18... Nxf6 {[%clk 0:02:32.9]} 19. Rfe1 {[%clk 0:03:26.5]} 19... Ng4
{[%clk 0:02:12.6]} 20. Nxd5 {[%clk 0:03:13.5]} 20... Qc6 {[%clk 0:01:39.2]} 21.
Ne3 {[%clk 0:03:04.1]} 21... Rxf3 {[%clk 0:01:05.4]} 22. gxf3 {[%clk 0:02:51.3]}
22... Qxf3 {[%clk 0:00:36.5]} 23. Nxg4 {[%clk 0:02:49.1]} 23... Qxg4+ {[%clk
0:00:30.8]} 24. Kf1 {[%clk 0:02:44.1]} 24... Bxd4 {[%clk 0:00:25.4]} 25. Ra3
{[%clk 0:02:34.5]} 25... Re8 {[%clk 0:00:13.9]} 26. Rg3 {[%clk 0:02:32.1]} 26...
Qf5 {[%clk 0:00:08.2]} 27. Qxf5 {[%clk 0:02:29.1]} 1-0

[Event "Live Chess"]
[Site "Chess.com"]
[Date "2023.05.21"]
[Round "-"]
[White "LutherSullivan"]
[Black "raminguy"]
[Result "1-0"]
[WhiteElo "2190"]
[BlackElo "1941"]
[TimeControl "300"]
[EndTime "22:49:29 PDT"]
[Termination "LutherSullivan won on time"]

1. d4 {[%clk 0:04:57.3]} 1... d5 {[%clk 0:04:58.6]} 2. Nf3 {[%clk 0:04:54]} 2...
Nf6 {[%clk 0:04:57.1]} 3. Bf4 {[%clk 0:04:53.3]} 3... e6 {[%clk 0:04:56.1]} 4.
e3 {[%clk 0:04:52.7]} 4... Bd6 {[%clk 0:04:56]} 5. Bg3 {[%clk 0:04:51.3]} 5...
O-O {[%clk 0:04:55]} 6. Nbd2 {[%clk 0:04:49.4]} 6... b6 {[%clk 0:04:54.3]} 7.
Bd3 {[%clk 0:04:41.9]} 7... c5 {[%clk 0:04:51.7]} 8. c3 {[%clk 0:04:40]} 8...
Bb7 {[%clk 0:04:49.6]} 9. O-O {[%clk 0:04:38.4]} 9... Qc7 {[%clk 0:04:47.5]} 10.
Rc1 {[%clk 0:04:36.7]} 10... c4 {[%clk 0:04:42]} 11. Bb1 {[%clk 0:04:34.9]}
11... Nbd7 {[%clk 0:04:40.1]} 12. Qc2 {[%clk 0:04:31.9]} 12... g6 {[%clk
0:04:37.7]} 13. b3 {[%clk 0:04:26.4]} 13... b5 {[%clk 0:04:33.4]} 14. a4 {[%clk
0:04:23.7]} 14... a6 {[%clk 0:04:32.4]} 15. b4 {[%clk 0:04:18.7]} 15... e5
{[%clk 0:04:27.3]} 16. dxe5 {[%clk 0:04:15.8]} 16... Nxe5 {[%clk 0:04:26.2]} 17.
Nxe5 {[%clk 0:04:14]} 17... Bxe5 {[%clk 0:04:25.2]} 18. Bxe5 {[%clk 0:04:11.6]}
18... Qxe5 {[%clk 0:04:24.8]} 19. Nf3 {[%clk 0:04:11]} 19... Qd6 {[%clk
0:03:57.6]} 20. Nd4 {[%clk 0:04:09.1]} 20... Ng4 {[%clk 0:03:48.7]} 21. g3
{[%clk 0:04:06]} 21... bxa4 {[%clk 0:03:29.7]} 22. Qxa4 {[%clk 0:04:02.4]} 22...
Qe5 {[%clk 0:03:01.7]} 23. Qd7 {[%clk 0:03:46.2]} 23... Qh5 {[%clk 0:02:54.1]}
24. h4 {[%clk 0:03:42.7]} 24... Bc8 {[%clk 0:02:52.3]} 25. Qc6 {[%clk
0:03:36.1]} 25... Ra7 {[%clk 0:02:13.7]} 26. Rce1 {[%clk 0:03:13.7]} 26... Re7
{[%clk 0:02:00.8]} 27. Bc2 {[%clk 0:03:02]} 27... Nh6 {[%clk 0:01:34.4]} 28. Qf6
{[%clk 0:02:32.2]} 28... Ra7 {[%clk 0:00:36.2]} 29. Nc6 {[%clk 0:02:20.3]} 29...
Rc7 {[%clk 0:00:27.2]} 30. Ne7+ {[%clk 0:02:16.7]} 30... Rxe7 {[%clk 0:00:26.9]}
31. Qxe7 {[%clk 0:02:15.4]} 31... Qg4 {[%clk 0:00:26]} 32. Qg5 {[%clk
0:02:06.7]} 32... Qf3 {[%clk 0:00:17.9]} 33. Bd1 {[%clk 0:02:02]} 33... Qe4
{[%clk 0:00:12.2]} 34. f3 {[%clk 0:01:54]} 1-0

[Event "Live Chess"]
[Site "Chess.com"]
[Date "2023.05.21"]
[Round "-"]
[White "Singapourfeuj"]
[Black "Hacker_2009"]
[Result "1-0"]
[WhiteElo "2210"]
[BlackElo "1941"]
[TimeControl "300"]
[EndTime "22:49:40 PDT"]
[Termination "Singapourfeuj won by resignation"]

1. d4 {[%clk 0:04:56.3]} 1... Nf6 {[%clk 0:04:57.3]} 2. Nf3 {[%clk 0:04:55.4]}
2... e6 {[%clk 0:04:56.3]} 3. g3 {[%clk 0:04:54.4]} 3... d5 {[%clk 0:04:55.6]}
4. Bg2 {[%clk 0:04:53.5]} 4... c5 {[%clk 0:04:55.2]} 5. O-O {[%clk 0:04:52.4]}
5... Nc6 {[%clk 0:04:54.6]} 6. c3 {[%clk 0:04:50.7]} 6... Be7 {[%clk 0:04:53]}
7. a4 {[%clk 0:04:48.9]} 7... O-O {[%clk 0:04:51.6]} 8. Bg5 {[%clk 0:04:46.9]}
8... b6 {[%clk 0:04:50.2]} 9. Re1 {[%clk 0:04:46.1]} 9... Bb7 {[%clk 0:04:48.9]}
10. Nbd2 {[%clk 0:04:44.5]} 10... h6 {[%clk 0:04:46.8]} 11. Bxf6 {[%clk
0:04:43.5]} 11... Bxf6 {[%clk 0:04:45.5]} 12. e4 {[%clk 0:04:42.8]} 12... cxd4
{[%clk 0:04:44.2]} 13. e5 {[%clk 0:04:42]} 13... Be7 {[%clk 0:04:41.3]} 14. cxd4
{[%clk 0:04:40.9]} 14... Rc8 {[%clk 0:04:40.3]} 15. Rc1 {[%clk 0:04:36.7]} 15...
Nb4 {[%clk 0:04:38.4]} 16. Qb3 {[%clk 0:04:33.6]} 16... Qd7 {[%clk 0:04:30.9]}
17. h4 {[%clk 0:04:31.9]} 17... Rxc1 {[%clk 0:04:29.3]} 18. Rxc1 {[%clk
0:04:30.7]} 18... Rc8 {[%clk 0:04:29.2]} 19. Rc3 {[%clk 0:04:28.5]} 19... Ba6
{[%clk 0:04:09.8]} 20. Bf1 {[%clk 0:04:25.7]} 20... Bxf1 {[%clk 0:04:05.3]} 21.
Nxf1 {[%clk 0:04:24.7]} 21... Rc6 {[%clk 0:04:04]} 22. Ne3 {[%clk 0:04:21]}
22... a5 {[%clk 0:04:02.6]} 23. g4 {[%clk 0:04:19.4]} 23... Qc8 {[%clk
0:03:58.1]} 24. g5 {[%clk 0:04:17.8]} 24... hxg5 {[%clk 0:03:55.3]} 25. hxg5
{[%clk 0:04:16.5]} 25... g6 {[%clk 0:03:54.6]} 26. Ng4 {[%clk 0:04:13.7]} 26...
Qc7 {[%clk 0:03:46.2]} 27. Nf6+ {[%clk 0:04:11.6]} 27... Kg7 {[%clk 0:03:35.2]}
28. Nd2 {[%clk 0:04:08]} 28... Rxc3 {[%clk 0:03:13.3]} 29. bxc3 {[%clk
0:04:06.2]} 29... Nd3 {[%clk 0:03:12.9]} 30. Ne8+ {[%clk 0:04:05]} 1-0

[Event "Live Chess"]
[Site "Chess.com"]
[Date "2023.05.21"]
[Round "-"]
[White "Conradical12"]
[Black "Tushinskiy"]
[Result "0-1"]
[WhiteElo "1625"]
[BlackElo "2204"]
[TimeControl "300"]
[EndTime "22:50:08 PDT"]
[Termination "Tushinskiy won by resignation"]

1. e4 {[%clk 0:04:55.7]} 1... e5 {[%clk 0:04:58.8]} 2. f4 {[%clk 0:04:54.9]}
2... d6 {[%clk 0:04:58.7]} 3. Nf3 {[%clk 0:04:52.7]} 3... Bg4 {[%clk 0:04:58]}
4. fxe5 {[%clk 0:04:50.5]} 4... dxe5 {[%clk 0:04:48.2]} 5. Bc4 {[%clk
0:04:47.6]} 5... Nd7 {[%clk 0:04:46.8]} 6. d3 {[%clk 0:04:46.2]} 6... Ngf6
{[%clk 0:04:46]} 7. Ng5 {[%clk 0:04:40.7]} 7... Bxd1 {[%clk 0:04:41.2]} 8. Nc3
{[%clk 0:04:32.8]} 8... Bh5 {[%clk 0:04:36.3]} 9. O-O {[%clk 0:04:29.4]} 9...
Bc5+ {[%clk 0:04:34.1]} 10. Rf2 {[%clk 0:04:23.7]} 10... Bxf2+ {[%clk
0:04:31.8]} 11. Kxf2 {[%clk 0:04:22.5]} 11... O-O {[%clk 0:04:31.4]} 0-1

[Event "Live Chess"]
[Site "Chess.com"]
[Date "2023.05.21"]
[Round "-"]
[White "ProfPoisson"]
[Black "Jo1ts"]
[Result "1-0"]
[WhiteElo "1121"]
[BlackElo "822"]
[TimeControl "300"]
[EndTime "22:50:14 PDT"]
[Termination "ProfPoisson won by resignation"]

1. e4 {[%clk 0:04:55.4]} 1... d5 {[%clk 0:04:57.1]} 2. exd5 {[%clk 0:04:51.3]}
2... Qxd5 {[%clk 0:04:56.5]} 3. Nc3 {[%clk 0:04:48.7]} 3... Qd8 {[%clk
0:04:55.2]} 4. d4 {[%clk 0:04:45]} 4... Nf6 {[%clk 0:04:54.2]} 5. Nf3 {[%clk
0:04:41.1]} 5... Bg4 {[%clk 0:04:52.4]} 6. Be2 {[%clk 0:04:37.7]} 6... g6 {[%clk
0:04:45.1]} 7. O-O {[%clk 0:04:34.9]} 7... Bg7 {[%clk 0:04:42.1]} 8. Ne5 {[%clk
0:04:32.3]} 8... Bxe2 {[%clk 0:04:26.8]} 9. Qxe2 {[%clk 0:04:23.7]} 9... Qxd4
{[%clk 0:04:19.8]} 10. Rd1 {[%clk 0:04:15.1]} 10... Qh4 {[%clk 0:04:07.6]} 11.
Nd5 {[%clk 0:04:01.5]} 11... Nxd5 {[%clk 0:04:00.7]} 12. Rxd5 {[%clk 0:03:57.1]}
12... O-O {[%clk 0:03:50.1]} 13. Nf3 {[%clk 0:03:44.7]} 13... Qf6 {[%clk
0:03:35.6]} 14. Bg5 {[%clk 0:03:38.4]} 14... Qxb2 {[%clk 0:03:30.9]} 15. Rad1
{[%clk 0:03:32]} 15... e6 {[%clk 0:03:22.6]} 16. Rd8 {[%clk 0:03:25.1]} 16...
Nc6 {[%clk 0:03:18.7]} 17. R8d7 {[%clk 0:03:02.3]} 17... Qb6 {[%clk 0:03:11]}
18. Be3 {[%clk 0:02:58]} 18... Qb2 {[%clk 0:02:51]} 19. Ng5 {[%clk 0:02:47]}
19... Rac8 {[%clk 0:02:42.2]} 20. Qf3 {[%clk 0:02:43.8]} 20... f5 {[%clk
0:02:31.9]} 21. Nxe6 {[%clk 0:02:37.4]} 21... Qxc2 {[%clk 0:01:57.5]} 22. Rxg7+
{[%clk 0:02:26]} 22... Kh8 {[%clk 0:01:53.4]} 23. Rc1 {[%clk 0:01:38.5]} 23...
Qxa2 {[%clk 0:01:40.8]} 24. Qh3 {[%clk 0:01:33.1]} 24... h5 {[%clk 0:01:13.6]}
25. Rxg6 {[%clk 0:01:16.9]} 1-0

[Event "Live Chess"]
[Site "Chess.com"]
[Date "2023.05.21"]
[Round "-"]
[White "chessfiction"]
[Black "HonestJoe1"]
[Result "1-0"]
[WhiteElo "2348"]
[BlackElo "2094"]
[TimeControl "300"]
[EndTime "22:50:35 PDT"]
[Termination "chessfiction won by resignation"]

1. e4 {[%clk 0:04:57.9]} 1... c5 {[%clk 0:04:58.3]} 2. Nf3 {[%clk 0:04:56.4]}
2... Nc6 {[%clk 0:04:57.2]} 3. d4 {[%clk 0:04:52.7]} 3... cxd4 {[%clk 0:04:56]}
4. Nxd4 {[%clk 0:04:52.6]} 4... g6 {[%clk 0:04:54.7]} 5. Bc4 {[%clk 0:04:46.9]}
5... Bg7 {[%clk 0:04:52.8]} 6. Be3 {[%clk 0:04:42.9]} 6... Nf6 {[%clk
0:04:51.5]} 7. Nc3 {[%clk 0:04:35.5]} 7... O-O {[%clk 0:04:49.2]} 8. O-O {[%clk
0:04:27.5]} 8... Ng4 {[%clk 0:04:45.7]} 9. Qxg4 {[%clk 0:04:22.7]} 9... Nxd4
{[%clk 0:04:44.1]} 10. Qd1 {[%clk 0:04:16.6]} 10... Nc6 {[%clk 0:04:28.7]} 11.
Qd2 {[%clk 0:04:14.6]} 11... d6 {[%clk 0:04:27.1]} 12. Bh6 {[%clk 0:04:12.3]}
12... Be6 {[%clk 0:04:19.4]} 13. Bxe6 {[%clk 0:04:09.8]} 13... fxe6 {[%clk
0:04:18.3]} 14. Bxg7 {[%clk 0:04:09.3]} 14... Kxg7 {[%clk 0:04:16.2]} 15. Rad1
{[%clk 0:04:06.3]} 15... Qb6 {[%clk 0:04:07.4]} 16. Na4 {[%clk 0:04:03.3]} 16...
Qc7 {[%clk 0:04:02.6]} 17. b3 {[%clk 0:03:59]} 17... b5 {[%clk 0:03:55.6]} 18.
Nb2 {[%clk 0:03:54.9]} 18... Ne5 {[%clk 0:03:50]} 19. f4 {[%clk 0:03:51.1]}
19... Qb6+ {[%clk 0:03:45.9]} 20. Kh1 {[%clk 0:03:46.5]} 20... Ng4 {[%clk
0:03:34.8]} 21. Rde1 {[%clk 0:03:40.7]} 21... Rac8 {[%clk 0:03:10.7]} 22. c4
{[%clk 0:03:32.7]} 22... a6 {[%clk 0:02:54.4]} 23. Qc3+ {[%clk 0:03:21.6]} 23...
Kg8 {[%clk 0:02:42.8]} 24. Qg3 {[%clk 0:03:15.6]} 24... Nf6 {[%clk 0:02:37.7]}
25. Qh3 {[%clk 0:03:10.4]} 25... Qd4 {[%clk 0:01:52.7]} 26. Qxe6+ {[%clk
0:03:07.1]} 26... Kh8 {[%clk 0:01:49.7]} 27. Re2 {[%clk 0:02:55.3]} 27... bxc4
{[%clk 0:01:46.6]} 28. Nxc4 {[%clk 0:02:52.2]} 28... Qd3 {[%clk 0:01:33.9]} 29.
Rfe1 {[%clk 0:02:41.2]} 29... Rce8 {[%clk 0:01:23.4]} 30. e5 {[%clk 0:02:19.9]}
30... Nh5 {[%clk 0:01:01.6]} 31. exd6 {[%clk 0:02:01]} 31... Nxf4 {[%clk
0:00:58.7]} 32. Qe5+ {[%clk 0:01:57]} 32... Kg8 {[%clk 0:00:53.4]} 33. dxe7
{[%clk 0:01:49.9]} 33... Rf7 {[%clk 0:00:50.4]} 34. Qe3 {[%clk 0:01:04.3]} 34...
Rfxe7 {[%clk 0:00:38.2]} 35. Qxd3 {[%clk 0:00:59.7]} 35... Nxd3 {[%clk
0:00:32.9]} 36. Rxe7 {[%clk 0:00:58.7]} 1-0

[Event "Live Chess"]
[Site "Chess.com"]
[Date "2023.05.21"]
[Round "-"]
[White "Shepherds_Pie"]
[Black "MaximKhimchenko"]
[Result "0-1"]
[WhiteElo "1908"]
[BlackElo "1395"]
[TimeControl "300"]
[EndTime "22:50:52 PDT"]
[Termination "MaximKhimchenko won by resignation"]

1. c4 {[%clk 0:04:56.4]} 1... e5 {[%clk 0:04:57.6]} 2. Nc3 {[%clk 0:04:55]} 2...
Nf6 {[%clk 0:04:51.7]} 3. Nf3 {[%clk 0:04:53.4]} 3... Nc6 {[%clk 0:04:46]} 4. e3
{[%clk 0:04:51.5]} 4... d5 {[%clk 0:04:42.9]} 5. cxd5 {[%clk 0:04:50.1]} 5...
Nxd5 {[%clk 0:04:42.8]} 6. Bb5 {[%clk 0:04:48.9]} 6... Nxc3 {[%clk 0:04:36]} 7.
bxc3 {[%clk 0:04:47.4]} 7... Bd7 {[%clk 0:04:34.7]} 8. Bxc6 {[%clk 0:04:44.1]}
8... Bxc6 {[%clk 0:04:34.6]} 9. Nxe5 {[%clk 0:04:43]} 9... Bxg2 {[%clk
0:04:28.2]} 10. Qa4+ {[%clk 0:04:41.5]} 10... c6 {[%clk 0:04:21]} 11. Rg1 {[%clk
0:04:39.1]} 11... Bh3 {[%clk 0:04:16.6]} 12. Ba3 {[%clk 0:04:20]} 12... Be6
{[%clk 0:04:14.2]} 13. Bxf8 {[%clk 0:04:17.2]} 13... Kxf8 {[%clk 0:04:12.9]} 14.
Qb4+ {[%clk 0:04:13.9]} 14... Qe7 {[%clk 0:04:07.7]} 15. Qxe7+ {[%clk
0:03:59.1]} 15... Kxe7 {[%clk 0:04:07.6]} 16. Rb1 {[%clk 0:03:58]} 16... Rab8
{[%clk 0:04:03.1]} 17. Rxg7 {[%clk 0:03:54.8]} 17... Kf6 {[%clk 0:04:02.2]} 18.
Nxc6 {[%clk 0:03:11.9]} 18... bxc6 {[%clk 0:03:59]} 19. Rxb8 {[%clk 0:03:10]}
19... Rxb8 {[%clk 0:03:58.6]} 20. Rxh7 {[%clk 0:03:08.9]} 20... Bf5 {[%clk
0:03:44.3]} 21. Rh4 {[%clk 0:03:03.3]} 21... Bd3 {[%clk 0:03:42.3]} 22. f4
{[%clk 0:02:56.3]} 22... Rb1+ {[%clk 0:03:36.7]} 23. Kf2 {[%clk 0:02:55.1]}
23... Rb2 {[%clk 0:03:36.2]} 24. Kf3 {[%clk 0:02:52.6]} 24... Rxd2 {[%clk
0:03:34.1]} 25. e4 {[%clk 0:02:51.6]} 25... Rxa2 {[%clk 0:03:28.9]} 26. Rh6+
{[%clk 0:02:47.1]} 26... Kg7 {[%clk 0:03:24.3]} 27. Rxc6 {[%clk 0:02:45.3]}
27... Ra4 {[%clk 0:03:21.1]} 28. e5 {[%clk 0:02:40.1]} 28... Be4+ {[%clk
0:03:19.7]} 0-1

[Event "Live Chess"]
[Site "Chess.com"]
[Date "2023.05.21"]
[Round "-"]
[White "MaximKris"]
[Black "profpirate4"]
[Result "1-0"]
[WhiteElo "1842"]
[BlackElo "1205"]
[TimeControl "300"]
[EndTime "22:51:17 PDT"]
[Termination "MaximKris won by resignation"]

1. e4 {[%clk 0:04:58.8]} 1... c5 {[%clk 0:04:58.9]} 2. Nf3 {[%clk 0:04:56.7]}
2... d6 {[%clk 0:04:58.1]} 3. c3 {[%clk 0:04:55.7]} 3... Nf6 {[%clk 0:04:56.2]}
4. Bd3 {[%clk 0:04:51.1]} 4... a6 {[%clk 0:04:42.4]} 5. O-O {[%clk 0:04:47.6]}
5... b5 {[%clk 0:04:41.4]} 6. a4 {[%clk 0:04:43.9]} 6... c4 {[%clk 0:04:38.3]}
7. Bc2 {[%clk 0:04:41.6]} 7... Bb7 {[%clk 0:04:37.4]} 8. axb5 {[%clk 0:04:40.1]}
8... axb5 {[%clk 0:04:36.3]} 9. Rxa8 {[%clk 0:04:40]} 9... Bxa8 {[%clk
0:04:35.4]} 10. Re1 {[%clk 0:04:38.1]} 10... e5 {[%clk 0:04:32.3]} 11. d3 {[%clk
0:04:32.6]} 11... Nc6 {[%clk 0:04:28.9]} 12. d4 {[%clk 0:04:31.3]} 12... Be7
{[%clk 0:04:24]} 13. d5 {[%clk 0:04:29.8]} 13... Na5 {[%clk 0:04:19]} 14. Na3
{[%clk 0:04:27.6]} 14... Qb8 {[%clk 0:04:12.8]} 15. Nxb5 {[%clk 0:04:11.2]}
15... Nb3 {[%clk 0:04:08.2]} 16. Bxb3 {[%clk 0:04:08.6]} 16... cxb3 {[%clk
0:04:05.1]} 17. Qxb3 {[%clk 0:04:06.8]} 17... O-O {[%clk 0:03:59.3]} 18. c4
{[%clk 0:04:02.4]} 18... Qb6 {[%clk 0:03:53.1]} 19. Be3 {[%clk 0:03:58.4]} 19...
Qa5 {[%clk 0:03:47.2]} 20. Qa3 {[%clk 0:03:45.7]} 20... Qxa3 {[%clk 0:03:42.2]}
21. bxa3 {[%clk 0:03:45.6]} 21... Rb8 {[%clk 0:03:39.3]} 22. a4 {[%clk
0:03:44.1]} 22... Bd8 {[%clk 0:03:37.8]} 23. Ba7 {[%clk 0:03:41]} 23... Rb7
{[%clk 0:03:35]} 24. c5 {[%clk 0:03:38.2]} 24... dxc5 {[%clk 0:03:33.6]} 25.
Bxc5 {[%clk 0:03:38.1]} 25... Ba5 {[%clk 0:03:30.5]} 26. Rc1 {[%clk 0:03:36]}
26... Nxe4 {[%clk 0:03:26.6]} 27. Bb6 {[%clk 0:03:30.3]} 27... Rb8 {[%clk
0:03:09.6]} 28. Bxa5 {[%clk 0:03:28.9]} 28... Bxd5 {[%clk 0:03:07.2]} 29. Nxe5
{[%clk 0:03:27.7]} 29... h6 {[%clk 0:02:59.3]} 30. Nc6 {[%clk 0:03:24.8]} 30...
Rc8 {[%clk 0:02:52.7]} 31. Ne7+ {[%clk 0:03:23.5]} 31... Kh7 {[%clk 0:02:50.3]}
32. Nxc8 {[%clk 0:03:23.4]} 1-0

[Event "Live Chess"]
[Site "Chess.com"]
[Date "2023.05.21"]
[Round "-"]
[White "seabuck"]
[Black "peter-785"]
[Result "1-0"]
[WhiteElo "1891"]
[BlackElo "1217"]
[TimeControl "300"]
[EndTime "22:51:20 PDT"]
[Termination "seabuck won by resignation"]

1. d4 {[%clk 0:04:58]} 1... d5 {[%clk 0:04:57.8]} 2. c4 {[%clk 0:04:56.9]} 2...
c6 {[%clk 0:04:57.1]} 3. Nc3 {[%clk 0:04:55.5]} 3... e6 {[%clk 0:04:56.4]} 4.
cxd5 {[%clk 0:04:51.4]} 4... cxd5 {[%clk 0:04:52.5]} 5. Nf3 {[%clk 0:04:50.2]}
5... Nf6 {[%clk 0:04:46.7]} 6. Bg5 {[%clk 0:04:48.9]} 6... Be7 {[%clk
0:04:44.6]} 7. e3 {[%clk 0:04:47.9]} 7... O-O {[%clk 0:04:42.6]} 8. Bd3 {[%clk
0:04:46.7]} 8... Ng4 {[%clk 0:04:32.4]} 9. Bxe7 {[%clk 0:04:39]} 9... Qxe7
{[%clk 0:04:31.3]} 10. O-O {[%clk 0:04:34.1]} 10... a6 {[%clk 0:04:28.4]} 11.
Rc1 {[%clk 0:04:30.3]} 11... b5 {[%clk 0:04:24.6]} 12. a3 {[%clk 0:04:19.1]}
12... Bb7 {[%clk 0:04:17.2]} 13. h3 {[%clk 0:04:10.2]} 13... Nf6 {[%clk
0:04:15.2]} 14. Ne5 {[%clk 0:04:09.4]} 14... Nbd7 {[%clk 0:04:12.1]} 15. f4
{[%clk 0:03:59.5]} 15... Rfc8 {[%clk 0:03:54.5]} 16. Qe2 {[%clk 0:03:49.8]}
16... Ne4 {[%clk 0:03:47.4]} 17. Bxe4 {[%clk 0:03:45]} 17... dxe4 {[%clk
0:03:43.8]} 18. Rc2 {[%clk 0:03:34.4]} 18... Nxe5 {[%clk 0:03:39.2]} 19. fxe5
{[%clk 0:03:32.1]} 19... Qg5 {[%clk 0:02:49]} 20. Rf4 {[%clk 0:03:13.5]} 20...
Rf8 {[%clk 0:02:32.2]} 21. Nxe4 {[%clk 0:03:01.6]} 21... Bxe4 {[%clk 0:02:25.9]}
22. Rxe4 {[%clk 0:02:59.7]} 22... Qf5 {[%clk 0:02:21.3]} 23. Rf4 {[%clk
0:02:56.5]} 23... Qg6 {[%clk 0:02:19.7]} 24. Rf1 {[%clk 0:02:45.1]} 24... Rac8
{[%clk 0:02:17.7]} 25. Rfc1 {[%clk 0:02:43.6]} 25... Rxc2 {[%clk 0:02:14.9]} 26.
Qxc2 {[%clk 0:02:42.2]} 26... Qg3 {[%clk 0:02:07.4]} 27. Qf2 {[%clk 0:02:35.9]}
27... Qg5 {[%clk 0:01:56.8]} 28. Rc6 {[%clk 0:02:27.1]} 28... h6 {[%clk
0:01:39.2]} 29. Rxa6 {[%clk 0:02:25]} 29... Rc8 {[%clk 0:01:38.6]} 30. Rb6
{[%clk 0:02:17]} 30... Rc1+ {[%clk 0:01:33.8]} 31. Kh2 {[%clk 0:02:13.4]} 31...
Qd8 {[%clk 0:01:21.8]} 32. Rxb5 {[%clk 0:02:08.9]} 32... f6 {[%clk 0:01:20]} 33.
exf6 {[%clk 0:02:06.2]} 33... Qd6+ {[%clk 0:01:08]} 34. Qg3 {[%clk 0:01:57.3]}
1-0